fUSD/lending_fUSD_20260409
["ID","MTS","AMOUNT","RATE_DAILY","PERIOD"]
[420116974,1775691033679,-633.65574461,0.00010413,2]
[420116976,1775691033917,-653.96509923,0.00010413,2]
[420116977,1775691033926,-250.0,0.00010413,2]
[420116978,1775691033936,-43233.17824195,0.00010414,2]
[420116979,1775691033946,-100803.0302511,0.00010414,2]
[420116980,1775691033984,-3500.0,0.00010414,2]
[420116982,1775691038339,-12006.29957838,0.00010414,2]
[420116983,1775691038351,-22921.64023375,0.00010414,2]
[420116984,1775691038364,-1331.50731239,0.00010414,2]
[420116985,1775691038377,-11459.67674882,0.00010414,2]
[420116986,1775691038389,-1347977.84587556,0.00010414,2]
[420116987,1775691038399,-372.0,0.00010468,2]
[420116988,1775691038408,-200.0,0.00010474,2]
[420116989,1775691038418,-5431.0,0.000105,5]
[420116990,1775691038428,-150.0,0.00010512,2]
[420116991,1775691038438,-2159.4993,0.00010513,2]
[420116992,1775691038448,-5113.602,0.00010513,2]
[420116993,1775691038457,-2911.734,0.00010513,2]
[420116994,1775691038467,-151.489,0.00010513,2]
[420116995,1775691038477,-28668.4034,0.00010514,2]
[420116996,1775691038487,-2500.0,0.00010514,2]
[420116997,1775691038499,-162.00655435,0.00010514,2]
[420116998,1775691038509,-155.90694232,0.00010514,2]
[420116999,1775691038519,-3060.65366294,0.00010514,2]
[420117000,1775691038529,-151.0,0.00010608,2]
[420117001,1775691038539,-151.0,0.00010608,2]
[420117002,1775691038548,-151.0,0.00010608,2]
[420117003,1775691038558,-151.0,0.00010608,2]
[420117004,1775691038567,-151.0,0.00010608,2]
[420117005,1775691038577,-500.0,0.00010608,2]
[420117006,1775691038586,-151.0,0.00010608,2]
[420117007,1775691038596,-500.0,0.00010608,2]
[420117008,1775691038606,-151.0,0.00010608,2]
[420117009,1775691038616,-500.0,0.00010608,2]
[420117010,1775691038625,-151.0,0.00010608,2]
[420117011,1775691038635,-500.0,0.00010608,2]
[420117012,1775691038645,-151.0,0.00010608,2]
[420117013,1775691038655,-500.0,0.00010608,2]
[420117014,1775691038664,-151.0,0.00010608,2]
[420117015,1775691038675,-500.0,0.00010608,2]
[420117016,1775691038685,-151.0,0.00010608,2]
[420117017,1775691038695,-495.01548166,0.00010608,2]
[420117018,1775691038704,-151.0,0.00010608,2]
[420117019,1775691038714,-151.0,0.00010608,2]
[420117020,1775691038723,-200.0,0.00010608,2]
[420117021,1775691038733,-151.0,0.00010608,2]
[420117022,1775691038742,-151.0,0.00010608,2]
[420117023,1775691038752,-151.0,0.00010608,2]
[420117024,1775691038761,-500.0,0.00010608,2]
[420117025,1775691038771,-151.0,0.00010608,2]
[420117026,1775691038781,-500.0,0.00010608,2]
[420117027,1775691038790,-151.0,0.00010608,2]
[420117028,1775691038800,-500.0,0.00010608,2]
[420117029,1775691038810,-151.0,0.00010608,2]
[420117030,1775691038819,-500.0,0.00010608,2]
[420117031,1775691038829,-151.0,0.00010608,2]
[420117032,1775691038838,-500.0,0.00010608,2]
[420117033,1775691038848,-151.0,0.00010608,2]
[420117034,1775691038858,-500.0,0.00010608,2]
[420117035,1775691038868,-151.0,0.00010608,2]
[420117036,1775691038877,-500.0,0.00010608,2]
[420117038,1775691038887,-151.0,0.00010608,2]
[420117040,1775691038898,-500.0,0.00010608,2]
[420117042,1775691038907,-151.0,0.00010608,2]
[420117043,1775691038916,-151.0,0.00010608,2]
[420117045,1775691038926,-500.0,0.00010608,2]
[420117047,1775691038936,-151.0,0.00010608,2]
[420117049,1775691038946,-500.0,0.00010608,2]
[420117051,1775691038956,-151.0,0.00010608,2]
[420117053,1775691038966,-500.0,0.00010608,2]
[420117055,1775691038976,-151.0,0.00010608,2]
[420117057,1775691038986,-500.0,0.00010608,2]
[420117059,1775691038995,-151.0,0.00010608,2]
[420117061,1775691039005,-500.0,0.00010608,2]
[420117064,1775691039015,-151.0,0.00010608,2]
[420117065,1775691039024,-151.0,0.00010608,2]
[420117067,1775691039034,-151.0,0.00010608,2]
[420117069,1775691039044,-151.0,0.00010608,2]
[420117071,1775691039054,-151.0,0.00010608,2]
[420117073,1775691039063,-151.0,0.00010608,2]
[420117075,1775691039073,-151.0,0.00010608,2]
[420117077,1775691039082,-151.0,0.00010608,2]
[420117079,1775691039091,-151.0,0.00010608,2]
[420117081,1775691039101,-1156.41848616,0.00010608,2]
[420117083,1775691039111,-991.37648886,0.00010608,2]
[420117085,1775691039121,-390.98,0.00010608,2]
[420117087,1775691039131,-151.0,0.00010611,2]
[420117089,1775691039141,-151.0,0.00010611,2]
[420117091,1775691039150,-500.0,0.00010613,2]
[420117094,1775691039162,-1032.72554709,0.00010613,3]
[420117095,1775691039172,-1032.72554709,0.00010613,3]
[420117097,1775691039182,-1000.0,0.00010614,2]
[420117100,1775691039192,-250.0,0.00010656,2]
[420117102,1775691039202,-500.0,0.00010673,2]
[420117104,1775691039211,-500.0,0.00010673,2]
[420117105,1775691039220,-500.0,0.00010673,2]
[420117107,1775691039229,-169.66281329,0.00010673,2]
[420117109,1775691039239,-500.0,0.00010673,2]
[420117111,1775691039249,-500.0,0.00010673,2]
[420117113,1775691039258,-500.0,0.00010673,2]
[420117115,1775691039268,-308.57923412,0.00010673,2]
[420117117,1775691039278,-500.0,0.00010673,2]
[420117119,1775691039287,-500.0,0.00010673,2]
[420117122,1775691039297,-500.0,0.00010673,2]
[420117124,1775691039307,-500.0,0.00010673,2]
[420117126,1775691039316,-246.25716228,0.00010673,2]
[420117128,1775691039326,-500.0,0.00010673,2]
[420117130,1775691039336,-500.0,0.00010673,2]
[420117131,1775691039346,-500.0,0.00010673,2]
[420117134,1775691039356,-2900.0,0.000108,3]
[420117136,1775691039367,-390.98,0.00010882,2]
[420117138,1775691039376,-500.0,0.00010887,2]
[420117140,1775691039386,-5800.0,0.000109,3]
[420117141,1775691039396,-1116.0,0.00010945,2]
[420117144,1775691039406,-500.0,0.00010958,2]
[420117146,1775691039416,-500.0,0.00010958,3]
[420117148,1775691039426,-500.0,0.00010958,4]
[420117149,1775691039436,-500.0,0.00010958,2]
[420117152,1775691039446,-500.0,0.00010958,3]
[420117153,1775691039456,-500.0,0.00010958,4]
[420117156,1775691039467,-500.0,0.00010958,5]
[420117158,1775691039477,-500.0,0.00010958,6]
[420117159,1775691039487,-500.0,0.00010959,2]
[420117161,1775691039497,-226.04203092,0.00010959,2]
[420117163,1775691039507,-151.0,0.0001097,2]
[420117165,1775691039516,-151.502,0.00011087,2]
[420117167,1775691039526,-23045.56682481,0.00011099,2]
[420117169,1775691039536,-23045.56682473,0.00011099,2]
[420117171,1775691039546,-200.0,0.00011156,2]
[420117173,1775691039555,-1199.20597015,0.00011156,2]
[420117175,1775691039564,-390.98,0.00011156,2]
[420117177,1775691039574,-500.0,0.00011161,2]
[420117179,1775691039583,-1000.0,0.00011221,2]
[420117181,1775691039593,-1000.0,0.00011221,2]
[420117183,1775691039603,-500.0,0.00011221,2]
[420117185,1775691039612,-1000.0,0.00011221,2]
[420117187,1775691039621,-152.59,0.00011233,2]
[420117189,1775691039631,-390.98,0.0001143,2]
[420117191,1775691039642,-634.23081963,0.00011435,2]
[420117194,1775691039652,-420.0,0.00011449,2]
[420117196,1775691039662,-1680.0,0.00011454,2]
[420117198,1775691039671,-600.0,0.00011454,2]
[420117200,1775691039681,-600.0,0.00011454,2]
[420117202,1775691039691,-600.0,0.00011454,2]
[420117204,1775691039701,-600.0,0.00011454,2]
[420117206,1775691039711,-600.0,0.00011454,2]
[420117207,1775691039720,-195.0,0.00011454,2]
[420117209,1775691039730,-195.0,0.00011454,2]
[420117211,1775691039740,-195.0,0.00011454,2]
[420117213,1775691039750,-195.0,0.00011454,2]
[420117215,1775691039760,-195.0,0.00011454,2]
[420117218,1775691039771,-193.0,0.00011454,2]
[420117220,1775691039781,-5000.0,0.00011454,2]
[420117222,1775691039792,-250.0,0.00011454,2]
[420117223,1775691039801,-338.58090884,0.00011505,2]
[420117226,1775691039811,-1116.0,0.00011521,2]
[420117228,1775691039821,-255.0,0.00011532,2]
[420117230,1775691039831,-2000.0,0.00011595,2]
[420117232,1775691039841,-193.0,0.00011619,2]
[420117234,1775691039850,-29672.5701955,0.00011646,2]
[420117236,1775691039860,-23045.56682473,0.00011646,2]
[420117285,1775691040328,-150.0,0.000117,2]
[420117287,1775691040338,-200.0,0.00011704,2]
[420117290,1775691040348,-422.99906757,0.00011704,2]
[420117292,1775691040358,-391.02,0.00011704,2]
[420117294,1775691040368,-1500.0,0.00011768,2]
[420117296,1775691040378,-1500.0,0.00011768,2]
[420117298,1775691040388,-1500.0,0.00011768,2]
[420117300,1775691040398,-162.00655431,0.00011861,2]
[420117302,1775691040407,-8800.0,0.000119,4]
[420117304,1775691040417,-150.0,0.00012094,2]
[420117306,1775691040427,-266.846312,0.00012095,2]
[420117308,1775691040437,-1116.0,0.00012128,2]
[420117310,1775691040447,-29672.5701955,0.00012213,2]
[420117312,1775691040456,-23045.56682473,0.00012213,2]
[420117314,1775691040465,-200.0,0.00012252,2]
[420117316,1775691040474,-500.0,0.00012316,2]
[420117318,1775691040484,-587.0,0.00012589,2]
[420117320,1775691040494,-2351.0,0.000126,2]
[420117322,1775691040504,-433.0,0.00012646,2]
[420117323,1775691040513,-150.0,0.00012712,2]
[420117325,1775691040522,-1116.0,0.00012766,2]
[420117327,1775691040532,-29672.5701955,0.00012779,2]
[420117329,1775691040542,-23045.56682473,0.00012779,2]
[420117331,1775691040552,-291.86800938,0.000128,2]
[420117333,1775691040561,-2000.0,0.00012883,2]
[420117335,1775691040571,-8614.82,0.00012953,2]
[420117337,1775691040581,-500.0,0.00012998,5]
[420117340,1775691040591,-172.329,0.00013,2]
[420117342,1775691040601,-250.0,0.00013,2]
[420117344,1775691040611,-155.90694231,0.00013062,2]
[420117347,1775691040622,-506.0,0.000131,2]
[420117349,1775691040632,-162.00655431,0.00013207,2]
[420117350,1775691040642,-1000.0,0.00013234,2]
[420117353,1775691040653,-160.0,0.00013264,2]
[420117354,1775691040663,-247.473871,0.00013264,2]
[420117356,1775691040672,-395.237823,0.00013264,2]
[420117359,1775691040684,-630.475646,0.00013264,2]
[420117361,1775691040694,-160.0,0.00013264,2]
[420117363,1775691040703,-562.02856,0.00013264,2]
[420117365,1775691040712,-964.057121,0.00013264,2]
[420117366,1775691040723,-29672.5701955,0.00013345,2]
[420117368,1775691040732,-23045.56682473,0.00013345,2]
[420117370,1775691040742,-176.73187577,0.00013347,2]
[420117372,1775691040751,-160.0,0.00013424,2]
[420117374,1775691040761,-468.10435,0.00013424,2]
[420117376,1775691040770,-776.208701,0.00013424,2]
[420117378,1775691040780,-191.979731,0.00013424,2]
[420117381,1775691040790,-160.0,0.00013424,2]
[420117383,1775691040800,-1188.764388,0.00013424,2]
[420117384,1775691040810,-2217.528777,0.00013424,2]
[420117386,1775691040820,-1116.0,0.00013438,2]
[420117388,1775691040830,-695.45,0.00013475,2]
[420117391,1775691040840,-500.0,0.00013698,2]
[420117393,1775691040850,-500.0,0.00013698,2]
[420117395,1775691040860,-501.43489187,0.00013698,2]
[420117396,1775691040869,-500.0,0.00013698,2]
[420117398,1775691040879,-500.0,0.00013698,2]
[420117400,1775691040888,-500.0,0.00013698,2]
[420117401,1775691040898,-500.0,0.00013698,2]
[420117402,1775691040907,-500.0,0.00013698,2]
[420117403,1775691040916,-500.0,0.00013698,2]
[420117404,1775691040926,-500.0,0.00013698,2]
[420117405,1775691040936,-500.0,0.00013698,2]
[420117406,1775691040945,-500.0,0.00013698,2]
[420117407,1775691040955,-500.0,0.00013698,2]
[420117408,1775691040964,-500.0,0.00013698,2]
[420117409,1775691040973,-500.0,0.00013698,2]
[420117410,1775691040983,-500.0,0.00013698,2]
[420117411,1775691040993,-500.0,0.00013698,2]
[420117412,1775691041002,-500.0,0.00013698,2]
[420117413,1775691041011,-500.0,0.00013698,2]
[420117414,1775691041020,-500.0,0.00013698,2]
[420117415,1775691041030,-500.0,0.00013698,2]
[420117416,1775691041040,-500.0,0.00013698,2]
[420117417,1775691041049,-500.0,0.00013698,2]
[420117418,1775691041059,-500.0,0.00013698,2]
[420117419,1775691041068,-500.0,0.00013698,2]
[420117420,1775691041078,-500.0,0.00013698,2]
[420117421,1775691041087,-500.0,0.00013698,2]
[420117422,1775691041097,-500.0,0.00013698,2]
[420117423,1775691041106,-417.61051604,0.00013698,2]
[420117424,1775691041116,-500.0,0.00013698,2]
[420117425,1775691041125,-500.0,0.00013698,2]
[420117426,1775691041134,-623.88,0.00013698,2]
[420117427,1775691041144,-530.43633324,0.00013698,2]
[420117428,1775691041154,-500.0,0.00013698,2]
[420117429,1775691041163,-500.0,0.00013698,2]
[420117430,1775691041173,-500.0,0.00013698,2]
[420117431,1775691041182,-500.0,0.00013698,2]
[420117432,1775691041192,-500.0,0.00013698,2]
[420117433,1775691041202,-500.0,0.00013698,2]
[420117434,1775691041212,-500.0,0.00013698,2]
[420117435,1775691041222,-500.0,0.00013698,2]
[420117436,1775691041232,-500.0,0.00013698,2]
[420117437,1775691041243,-500.0,0.00013698,2]
[420117438,1775691041254,-150.0,0.00013699,2]
[420117439,1775691041264,-3069.0,0.00013699,2]
[420117440,1775691041274,-2029.06,0.00013699,2]
[420117441,1775691041283,-852.98,0.00013699,2]
[420117442,1775691041293,-166.66,0.00013699,2]
[420117443,1775691041303,-200.0,0.00013699,2]
[420117444,1775691041313,-9222.78,0.00013699,2]
[420117445,1775691041322,-152.1118183,0.00013699,2]
[420117446,1775691041330,-4183.38,0.000137,2]
[420117447,1775691041340,-4183.38,0.000137,2]
[420117448,1775691041349,-150.86,0.00013805,2]
[420117449,1775691041358,-264.0,0.00013809,2]
[420117450,1775691041367,-339.43,0.00013814,2]
[420117451,1775691041377,-166.66,0.00013836,2]
[420117452,1775691041386,-193.0,0.00013842,2]
[420117453,1775691041395,-3292.0,0.0001386,2]
[420117454,1775691041404,-736.0,0.00013876,2]
[420117455,1775691041414,-174.53,0.00013891,2]
[420117456,1775691041423,-29672.5701955,0.00013911,2]
[420117457,1775691041433,-23045.56682473,0.00013911,2]
[420117458,1775691041443,-538.960668,0.00013927,2]
[420117459,1775691041453,-766.402582,0.00013927,7]
[420117460,1775691041463,-500.0,0.00013967,2]
[420117461,1775691041472,-500.0,0.00013967,2]
[420117462,1775691041481,-292.48284775,0.00013967,2]
[420117463,1775691041491,-500.0,0.00013967,2]
[420117464,1775691041501,-500.0,0.00013967,2]
[420117466,1775691041511,-500.0,0.00013967,2]
[420117468,1775691041520,-500.0,0.00013967,2]
[420117470,1775691041529,-500.0,0.00013967,2]
[420117472,1775691041539,-500.0,0.00013967,2]
[420117474,1775691041549,-500.0,0.00013967,2]
[420117475,1775691041558,-500.0,0.00013967,2]
[420117476,1775691041568,-500.0,0.00013967,2]
[420117477,1775691041577,-166.66,0.00013973,2]
[420117478,1775691041587,-1829.0,0.0001404,5]
[420117479,1775691041597,-1694.0,0.0001404,5]
[420117480,1775691041608,-638.324114,0.00014095,2]
[420117481,1775691041617,-1621.042348,0.00014095,7]
[420117482,1775691041627,-506.0,0.00014099,2]
[420117483,1775691041637,-166.66,0.0001411,2]
[420117484,1775691041648,-786.02,0.00014118,2]
[420117485,1775691041658,-500.0,0.00014125,2]
[420117486,1775691041668,-500.0,0.00014133,2]
[420117488,1775691041678,-500.0,0.00014133,2]
[420117490,1775691041688,-1116.0,0.00014145,2]
[420117491,1775691041697,-2000.0,0.00014171,2]
[420117492,1775691041707,-321.58,0.00014224,2]
[420117493,1775691041716,-166.66,0.00014247,2]
[420117494,1775691041726,-662.26960582,0.00014291,4]
[420117495,1775691041736,-2029.06,0.00014384,2]
[420117496,1775691041746,-166.66,0.00014384,2]
[420117497,1775691041755,-786.02,0.00014392,2]
[420117498,1775691041764,-197.9819,0.000144,2]
[420117499,1775691041774,-1573.0,0.000144,2]
[420117500,1775691041784,-2000.0,0.00014439,2]
[420117501,1775691041793,-500.0,0.00014439,2]
[420117502,1775691041803,-150.0,0.00014449,2]
[420117503,1775691041813,-1264.0,0.00014449,2]
[420117504,1775691041823,-926.0,0.00014449,2]
[420117505,1775691041833,-1217.0,0.00014449,2]
[420117506,1775691041843,-6022.0,0.00014449,2]
[420117507,1775691041852,-1363.382,0.00014449,2]
[420117508,1775691041861,-321.58,0.00014459,2]
[420117509,1775691041871,-29672.5701955,0.00014478,2]
[420117510,1775691041880,-23045.56682473,0.00014478,2]
[420117511,1775691041891,-500.0,0.000145,2]
[420117512,1775691041901,-500.0,0.000145,2]
[420117513,1775691041912,-500.0,0.000145,2]
[420117514,1775691041921,-500.0,0.000145,2]
[420117515,1775691041931,-500.0,0.000145,2]
[420117516,1775691041941,-238.38,0.000145,5]
[420117517,1775691041950,-150.99,0.00014504,2]
[420117518,1775691041960,-2229.62,0.00014504,2]
[420117519,1775691041970,-4357.04,0.00014504,2]
[420117520,1775691041979,-1748.59,0.00014504,2]
[420117521,1775691041988,-1000.0,0.00014515,2]
[420117522,1775691042000,-1070.5730129,0.00014515,2]
[420117523,1775691042011,-1000.0,0.00014515,2]
[420117524,1775691042020,-1002.36079739,0.00014515,2]
[420117525,1775691042029,-1000.0,0.00014515,2]
[420117526,1775691042039,-1000.0,0.00014515,2]
[420117527,1775691042049,-503.11256555,0.00014515,2]
[420117528,1775691042058,-500.0,0.00014515,2]
[420117529,1775691042067,-1000.0,0.00014515,2]
[420117530,1775691042077,-1000.0,0.00014515,2]
[420117531,1775691042086,-500.0,0.0001452,2]
[420117532,1775691042095,-500.0,0.0001452,2]
[420117533,1775691042105,-644.24089955,0.0001452,2]
[420117534,1775691042114,-500.0,0.0001452,2]
[420117535,1775691042122,-162.00655431,0.00014554,2]
[420117536,1775691042132,-500.0,0.000146,2]
[420117537,1775691042142,-500.0,0.000146,2]
[420117538,1775691042151,-500.0,0.000146,2]
[420117539,1775691042161,-445.29859118,0.000146,2]
[420117540,1775691042170,-351.0,0.00014629,4]
[420117541,1775691042180,-500.0,0.00014656,2]
[420117542,1775691042189,-500.0,0.00014658,2]
[420117543,1775691042199,-500.0,0.00014658,2]
[420117544,1775691042208,-500.0,0.00014658,6]
[420117545,1775691042217,-500.0,0.00014658,7]
[420117546,1775691042227,-500.0,0.00014658,8]
[420117547,1775691042236,-786.02,0.00014666,2]
[420117548,1775691042245,-1000.0,0.00014673,2]
[420117549,1775691042255,-1000.0,0.00014681,2]
[420117550,1775691042264,-1018.40309967,0.00014681,2]
[420117551,1775691042273,-321.58,0.00014693,2]
[420117552,1775691042282,-162.0,0.0001472,2]
[420117553,1775691042291,-162.0,0.0001472,2]
[420117554,1775691042301,-160.0,0.00014761,2]
[420117555,1775691042310,-160.0,0.00014761,2]
[420117556,1775691042319,-253.29,0.00014784,2]
[420117557,1775691042328,-174.53,0.00014785,2]
[420117558,1775691042337,-33915.0,0.00014795,2]
[420117559,1775691042347,-150.00000001,0.0001482,2]
[420117560,1775691042356,-178.32724731,0.00014829,2]
[420117561,1775691042366,-206.42704472,0.00014829,2]
[420117562,1775691042375,-253.29,0.00014835,2]
[420117563,1775691042385,-985.91,0.00014882,2]
[420117564,1775691042395,-1116.0,0.0001489,2]
[420117565,1775691042405,-253.29,0.00014894,2]
[420117566,1775691042415,-5000.0,0.00014925,2]
[420117567,1775691042424,-5000.0,0.00014925,2]
[420117568,1775691042433,-321.58,0.00014928,2]
[420117569,1775691042442,-786.02,0.0001494,2]
[420117570,1775691042451,-350.0,0.00014978,2]
[420117571,1775691042460,-300.0,0.00015,2]
[420117572,1775691042469,-190.3,0.00015,2]
[420117573,1775691042479,-319.0,0.0001504,2]
[420117574,1775691042488,-29672.5701955,0.00015044,2]
[420117575,1775691042497,-23045.56682473,0.00015044,2]
[420117576,1775691042507,-158.811697,0.00015044,2]
[420117577,1775691042516,-151.0,0.00015044,2]
[420117578,1775691042525,-151.0,0.00015044,2]
[420117579,1775691042534,-552.35584,0.00015044,2]
[420117580,1775691042543,-151.0,0.00015044,2]
[420117581,1775691042553,-151.0,0.00015044,2]
[420117582,1775691042562,-151.0,0.00015044,2]
[420117583,1775691042572,-552.35584,0.00015044,2]
[420117584,1775691042582,-552.35584,0.00015044,2]
[420117585,1775691042592,-151.0,0.00015044,2]
[420117586,1775691042603,-151.0,0.00015044,2]
[420117587,1775691042612,-552.35584,0.00015044,2]
[420117588,1775691042622,-151.0,0.00015044,2]
[420117589,1775691042632,-10698.60042506,0.00015045,2]
[420117590,1775691042641,-1000.0,0.00015048,2]
[420117591,1775691042651,-1000.0,0.00015048,2]
[420117592,1775691042661,-477.15533545,0.00015051,2]
[420117593,1775691042671,-1500.0,0.00015063,2]
[420117594,1775691042680,-430.82314799,0.00015063,2]
[420117595,1775691042690,-1272.16418036,0.00015063,2]
[420117596,1775691042700,-1500.0,0.00015063,2]
[420117597,1775691042711,-892.34268442,0.00015063,2]
[420117598,1775691042720,-697.87652131,0.00015063,2]
[420117599,1775691042730,-1000.0,0.00015068,2]
[420117600,1775691042740,-1000.0,0.00015068,2]
[420117601,1775691042748,-1000.0,0.00015068,2]
[420117602,1775691042758,-2029.06,0.00015068,2]
[420117603,1775691042768,-800.91792691,0.00015068,2]
[420117604,1775691042778,-167.54354,0.00015086,2]
[420117605,1775691042787,-174.61919141,0.00015089,2]
[420117606,1775691042797,-200.0,0.00015089,2]
[420117607,1775691042807,-7965.41053268,0.00015089,2]
[420117608,1775691042816,-578.20924308,0.00015089,2]
[420117609,1775691042825,-1191.11104075,0.00015089,2]
[420117610,1775691042835,-151.0,0.00015089,2]
[420117611,1775691042845,-151.0,0.00015089,2]
[420117612,1775691042854,-151.0,0.00015089,2]
[420117613,1775691042864,-500.0,0.00015089,2]
[420117614,1775691042873,-158.44511549,0.00015089,2]
[420117615,1775691042882,-601.3376128,0.00015089,2]
[420117616,1775691042892,-743.50770149,0.00015089,2]
[420117617,1775691042901,-1500.0,0.00015089,2]
[420117618,1775691042911,-1500.0,0.00015089,2]
[420117619,1775691042921,-1500.0,0.00015089,2]
[420117620,1775691042930,-1500.0,0.00015089,2]
[420117621,1775691042941,-1500.0,0.00015089,2]
[420117622,1775691042950,-1500.0,0.00015089,2]
[420117623,1775691042960,-1500.0,0.00015089,2]
[420117624,1775691042970,-151.0,0.00015089,2]
[420117625,1775691042980,-174.61919142,0.00015089,2]
[420117626,1775691042990,-160.0,0.00015089,2]
[420117627,1775691042999,-578.20924308,0.00015089,2]
[420117628,1775691043009,-174.61919141,0.00015089,2]
[420117629,1775691043020,-1500.0,0.00015089,2]
[420117630,1775691043030,-1532.75885711,0.00015089,2]
[420117631,1775691043041,-285.62441693,0.00015089,2]
[420117632,1775691043051,-170.0,0.00015089,2]
[420117633,1775691043062,-170.0,0.00015089,2]
[420117634,1775691043073,-170.0,0.00015089,2]
[420117635,1775691043083,-170.0,0.00015089,2]
[420117636,1775691043094,-170.0,0.00015089,2]
[420117637,1775691043104,-170.0,0.00015089,2]
[420117638,1775691043115,-170.0,0.00015089,2]
[420117639,1775691043126,-170.0,0.00015089,2]
[420117640,1775691043136,-170.0,0.00015089,2]
[420117643,1775691043146,-170.0,0.00015089,2]
[420117645,1775691043157,-170.0,0.00015089,2]
[420117647,1775691043166,-170.0,0.00015089,2]
[420117649,1775691043177,-170.0,0.00015089,2]
[420117651,1775691043188,-170.0,0.00015089,2]
[420117653,1775691043199,-170.0,0.00015089,2]
[420117655,1775691043208,-170.0,0.00015089,2]
[420117657,1775691043219,-506.0,0.00015097,3]
[420117659,1775691043230,-500.0,0.000151,2]
[420117662,1775691043240,-8260.13072239,0.00015144,2]
[420117664,1775691043251,-500.0,0.00015144,2]
[420117666,1775691043262,-151.0,0.00015144,2]
[420117667,1775691043272,-350.0,0.00015145,2]
[420117669,1775691043283,-235.282447,0.00015145,2]
[420117671,1775691043294,-160.156487,0.00015145,2]
[420117673,1775691043305,-151.0,0.00015145,2]
[420117674,1775691043315,-151.0,0.00015145,2]
[420117676,1775691043325,-160.156487,0.00015145,2]
[420117678,1775691043335,-151.0,0.00015145,2]
[420117680,1775691043347,-504.916277,0.00015145,2]
[420117682,1775691043357,-160.156487,0.00015145,2]
[420117684,1775691043368,-504.916277,0.00015145,2]
[420117686,1775691043379,-160.156487,0.00015145,2]
[420117688,1775691043389,-151.0,0.00015145,2]
[420117690,1775691043400,-151.0,0.00015145,2]
[420117692,1775691043411,-844.758873,0.00015145,2]
[420117694,1775691043421,-504.916277,0.00015145,2]
[420117696,1775691043431,-844.758873,0.00015145,2]
[420117698,1775691043440,-504.916277,0.00015145,2]
[420117700,1775691043450,-844.758873,0.00015145,2]
[420117702,1775691043460,-9109.042971,0.00015145,2]
[420117703,1775691043471,-945.130176,0.00015145,2]
[420117704,1775691043481,-829.636433,0.00015145,2]
[420117705,1775691043491,-844.758873,0.00015145,2]
[420117706,1775691043501,-9109.042971,0.00015145,2]
[420117707,1775691043511,-945.130176,0.00015145,2]
[420117708,1775691043521,-829.636433,0.00015145,2]
[420117709,1775691043531,-9109.042971,0.00015145,2]
[420117710,1775691043542,-945.130176,0.00015145,2]
[420117711,1775691043552,-829.636433,0.00015145,2]
[420117712,1775691043562,-9109.042971,0.00015145,2]
[420117713,1775691043571,-829.636433,0.00015145,2]
[420117714,1775691043581,-945.130176,0.00015145,2]
[420117715,1775691043592,-151.0,0.00015145,2]
[420117716,1775691043602,-151.0,0.00015145,2]
[420117717,1775691043613,-151.0,0.00015145,2]
[420117718,1775691043623,-151.0,0.00015145,2]
[420117719,1775691043634,-2067.805526,0.00015145,2]